bitfinex/quotes_ETHUSD_20260107
["timestamp","ask_amount","ask_price","bid_price","bid_amount"]
[1767787827746,0.001,3219.5,3219.2,0.79294117]
[1767787828535,0.001,3219.5,3219.1,3.10643381]
[1767787829048,0.001,3219.5,3218.9,0.93062905]
[1767787829345,0.001,3219.5,3219.0,3.10655483]
[1767787830949,0.9468402,3219.7,3219.0,7.14373871]
[1767787831357,0.9468402,3219.7,3219.0,4.03718388]
[1767787831667,0.9468402,3219.7,3219.1,0.71438156]
[1767787833666,0.9468402,3219.7,3219.1,3.82083931]
[1767787835775,0.9468402,3219.7,3219.3,0.002]
[1767787836070,0.001,3219.5,3219.3,0.002]
[1767787836474,0.001,3220.1,3219.3,0.002]
[1767787836646,0.001,3220.1,3219.5,0.93149431]
[1767787836836,0.05442305,3220.4,3219.6,0.93149431]
[1767787837239,0.02338107,3220.3,3219.6,0.93149431]
[1767787837441,0.05442305,3220.4,3219.6,0.93149431]
[1767787837872,0.07780412,3220.3,3219.6,0.93149431]
[1767787838035,0.07780412,3220.3,3219.7,0.40375454]
[1767787838667,0.05442305,3220.3,3219.7,1.33524885]
[1767787838875,3.15945425,3220.6,3219.8,0.93149431]
[1767787839246,0.05442305,3220.5,3219.8,0.93149431]
[1767787839867,0.07780412,3220.4,3219.8,0.93149431]
[1767787840256,0.05442305,3220.4,3219.8,0.93149431]
[1767787840657,0.02338107,3220.3,3219.8,0.93149431]
[1767787841275,0.07780412,3220.3,3219.7,0.40375454]
[1767787841470,0.07780412,3220.3,3219.5,0.93149431]
[1767787841655,0.07780412,3220.3,3219.5,4.03755159]
[1767787841980,0.07780412,3220.3,3219.6,0.93149431]
[1767787842305,3.15945219,3220.6,3219.6,0.93149431]
[1767787842482,0.05442305,3220.5,3219.6,0.93149431]
[1767787842673,0.05442305,3220.5,3219.7,1.64585671]
[1767787843876,0.05442305,3220.5,3219.8,3.10578296]
[1767787844078,0.07780412,3220.5,3219.7,4.75169792]
[1767787845265,0.05442305,3220.4,3219.7,4.75169792]
[1767787845463,0.02338107,3220.3,3219.7,4.75169792]
[1767787847260,0.02338107,3220.3,3219.8,0.47516979]
[1767787849825,0.05442305,3220.4,3219.8,0.47516979]
[1767787851577,0.02338107,3220.5,3219.9,0.93149431]
[1767787851779,0.05542305,3220.8,3219.9,0.96255117]
[1767787852091,0.001,3220.8,3220.1,0.93149431]
[1767787852390,0.001,3220.8,3220.3,0.93149431]
[1767787859499,0.001,3220.8,3220.3,0.92949432]
[1767787860706,3.10446926,3221.2,3220.6,0.98750951]
[1767787861019,0.05642304,3221.4,3220.6,0.98750951]
[1767787861302,0.02338107,3221.3,3220.6,0.98750951]
[1767787861506,0.02338107,3221.3,3220.7,0.98750951]
[1767787861807,3.10431962,3221.4,3220.7,0.98750951]
[1767787862173,0.05642304,3221.7,3220.7,0.98750951]
[1767787862377,0.05642304,3221.5,3220.6,1.48448255]
[1767787862579,0.05642304,3221.5,3220.7,0.45895783]
[1767787862779,0.05642304,3221.5,3220.8,0.98626582]
[1767787862780,3.16064731,3221.5,3220.8,0.98626582]
[1767787863524,3.16031738,3221.8,3220.9,0.98626582]
[1767787863728,3.10389434,3221.8,3220.9,0.98626582]
[1767787864425,3.16031738,3221.8,3221.0,0.98626582]
[1767787864929,0.02338107,3221.7,3221.0,0.98626582]
[1767787867522,3.10404767,3221.6,3221.0,0.98626582]
[1767787868535,0.02338107,3221.5,3220.8,0.98626582]
[1767787868834,0.05642304,3221.4,3220.8,0.98626582]
[1767787869008,0.02338107,3221.3,3220.8,0.98626582]
[1767787869825,0.02338107,3221.3,3220.6,0.98626582]
[1767787870027,3.18418127,3221.3,3220.6,0.98626582]
[1767787870298,0.07980411,3221.3,3220.6,0.98626582]
[1767787870507,0.07980411,3221.3,3220.6,1.47691257]
[1767787870712,0.02338107,3221.3,3220.7,0.98626582]
[1767787871551,3.10418182,3221.5,3220.7,0.98626582]
[1767787871715,3.16047071,3221.6,3220.7,0.98626582]
[1767787872436,3.16047071,3221.6,3220.7,4.0911802]
[1767787872639,3.16047071,3221.6,3220.8,1.44444852]
[1767787872833,3.10404767,3221.6,3220.9,0.98626582]
[1767787873437,0.02338107,3221.5,3220.9,0.98626582]
[1767787873647,3.12754187,3221.5,3220.9,0.98626582]
[1767787873837,3.12854187,3221.5,3220.9,0.98626582]
[1767787875224,3.18496491,3221.5,3220.9,0.98626582]
[1767787878956,6.28912571,3221.5,3220.9,0.98626582]
[1767787879261,3.79049641,3221.5,3220.9,0.98626582]
[1767787879450,3.81387748,3221.5,3220.9,0.98626582]
[1767787879654,0.05642304,3221.4,3220.6,0.98626582]
[1767787879851,0.02338107,3221.3,3220.6,0.98626582]
[1767787880051,0.05642304,3221.2,3220.3,3.10522147]
[1767787880258,3.73407337,3221.5,3220.5,0.98626582]
[1767787880564,3.73407337,3221.5,3220.7,0.98626582]
[1767787880768,3.1051608,3221.5,3220.7,0.98626582]
[1767787880972,0.001,3221.5,3220.7,0.98626582]
[1767787881871,0.001,3221.5,3220.8,0.98626582]
[1767787882072,3.12852934,3221.5,3220.8,0.98626582]
[1767787882780,3.12852934,3221.5,3220.5,3.10509606]
[1767787882781,0.05642304,3221.4,3220.5,0.98626582]
[1767787882937,0.02338107,3221.3,3220.5,1.1662924]
[1767787884066,0.02338107,3221.3,3220.6,0.98626582]
[1767787886084,3.12772801,3221.3,3220.8,0.002]
[1767787886377,0.001,3221.0,3220.8,0.002]
[1767787894982,0.001,3221.0,3220.5,0.90551411]
[1767787895146,0.001,3221.0,3220.3,0.90551411]
[1767787895343,0.001,3221.0,3220.4,0.90551411]
[1767787898451,0.02438107,3221.0,3220.4,0.90551411]
[1767787899671,0.02438107,3221.0,3220.7,0.90751411]
[1767787910396,3.12901088,3221.0,3220.7,0.90751411]
[1767787910697,3.12901088,3221.0,3220.7,0.89015707]
[1767787911198,3.12901088,3221.0,3220.4,0.90751411]
[1767787911607,0.07178008,3220.8,3220.4,0.002]
[1767787913227,0.02438107,3221.0,3220.4,0.90751411]
[1767787913505,0.001,3221.5,3221.0,0.90551411]
[1767787920424,0.07178008,3221.4,3220.6,0.90551411]
[1767787920582,0.02338107,3221.3,3220.6,0.90551411]
[1767787920789,3.17605047,3221.4,3220.6,0.90551411]
[1767787921118,0.02338107,3221.3,3220.6,0.90551411]
[1767787921426,0.07178008,3221.2,3220.4,0.90751411]
[1767787921718,0.07178008,3221.0,3220.4,0.90751411]
[1767787923878,3.19979092,3221.0,3220.4,0.90751411]
[1767787924305,3.12801084,3221.0,3220.4,0.90751411]
[1767787924588,0.001,3221.0,3220.4,0.90751411]
[1767787928217,0.07278008,3221.0,3220.4,0.90751411]
[1767787928823,0.02338107,3220.9,3220.4,0.90751411]
[1767787930192,3.19989243,3220.9,3220.4,0.002]
[1767787930392,0.32008924,3220.8,3220.4,0.002]
[1767787932489,3.12811235,3220.9,3220.5,0.97863897]
[1767787932490,0.02338107,3220.9,3220.5,0.97863897]
[1767787932642,0.02438107,3221.0,3220.5,0.97863897]
[1767787933648,3.12903402,3221.0,3220.5,0.97863897]
[1767787933806,0.02438107,3221.0,3220.5,0.97863897]
[1767787934324,3.12905911,3221.0,3220.5,0.97863897]
[1767787934525,3.75240961,3221.0,3220.5,0.97863897]
[1767787936460,6.92886773,3221.0,3220.7,0.002]
[1767787936767,0.07178008,3220.9,3220.4,0.002]
[1767787936914,0.02338107,3220.8,3220.4,0.002]
[1767787938145,0.09516115,3220.8,3220.4,0.002]
[1767787938352,0.07178008,3220.7,3220.1,0.002]
[1767787938650,0.7,3220.5,3220.1,0.002]
[1767787939022,0.79516115,3220.5,3220.1,0.002]
[1767787939222,0.07178008,3220.4,3219.8,0.002]
[1767787939998,0.72338107,3220.5,3219.8,0.002]
[1767787940168,0.6933404,3220.4,3219.8,0.002]
[1767787940456,0.07178008,3220.3,3219.8,0.002]
[1767787942020,0.07178008,3220.2,3219.4,0.002]
[1767787942215,0.07178008,3220.0,3219.4,0.002]
[1767787942434,0.07178008,3219.8,3219.4,0.002]
[1767787942646,0.31774666,3219.7,3219.4,1e-08]
[1767787942871,0.07178008,3219.6,3219.3,0.002]
[1767787943043,0.07178008,3219.6,3219.0,0.002]
[1767787944635,0.07178008,3219.4,3219.0,0.002]
[1767787944829,0.38956533,3219.3,3219.0,0.002]
[1767787945035,0.31778525,3219.3,3219.0,0.002]
[1767787945353,3.17778839,3219.6,3219.0,0.002]
[1767787946369,0.07178008,3219.6,3219.0,0.002]
[1767787947038,3.1777614,3219.6,3219.0,0.002]
[1767787948266,3.1777614,3219.6,3219.3,0.002]
[1767787948468,0.07178008,3219.5,3219.0,0.002]
[1767787948663,0.31777614,3219.4,3219.0,0.002]
[1767787950378,0.02338107,3219.6,3219.0,0.98063897]
[1767787950601,0.02338107,3219.7,3219.0,0.98063897]
[1767787951262,3.12927302,3219.7,3219.0,0.98063897]
[1767787951662,3.94427302,3219.7,3219.0,0.98063897]
[1767787953495,7.93847572,3219.7,3219.0,0.98063897]
[1767787953685,1.80102558,3219.6,3219.0,0.98063897]
[1767787953888,7.91509465,3219.7,3219.0,0.98063897]
[1767787954198,7.10009465,3219.7,3219.0,0.98063897]
[1767787954398,7.91509465,3219.7,3219.0,0.98063897]
[1767787954698,0.02338107,3219.6,3219.0,0.98063897]
[1767787954898,7.98687473,3219.7,3219.0,0.98063897]
[1767787955101,1.79868747,3219.6,3219.0,0.98063897]
[1767787955304,7.98687473,3219.7,3219.0,0.98063897]
[1767787955685,0.02338107,3219.6,3219.0,0.98063897]
[1767787956312,0.001,3220.2,3219.3,0.96731353]
[1767787956502,0.9873141,3219.8,3219.0,0.002]
[1767787956711,3.9942027,3219.5,3218.8,3.10674027]
[1767787956912,3.9942027,3219.5,3218.8,4.79215252]
[1767787957113,3.9942027,3219.5,3218.9,3.10664442]
[1767787957323,0.9873141,3219.6,3218.9,4.07395795]
[1767787957916,0.9873141,3219.6,3219.0,0.96731353]
[1767787958128,2.982,3219.7,3219.0,0.96731353]
[1767787958417,12.10693481,3219.7,3219.0,0.96731353]
[1767787959620,13.09424891,3219.7,3219.0,0.96731353]
[1767787960121,0.001,3219.4,3219.0,0.96731353]
[1767787960824,0.001,3219.4,3219.1,0.96731353]
[1767787963453,0.001,3219.4,3218.8,0.96731353]
[1767787964255,0.001,3219.4,3218.9,0.96731353]
[1767787964420,0.001,3219.4,3219.0,0.96731353]
[1767787968868,0.001,3219.4,3218.8,0.96731353]
[1767787969022,0.001,3219.4,3218.8,4.07404728]
[1767787969229,0.001,3219.4,3218.9,0.96731353]
[1767787969429,0.001,3219.4,3219.0,0.96731353]
[1767787972144,0.001,3219.3,3219.0,0.96731353]
[1767787973177,11.361,3220.0,3219.2,0.96731353]
[1767787974160,9.344,3220.0,3219.2,0.96731353]
[1767787974558,3.10563249,3220.0,3219.2,0.96731353]
[1767787975867,14.09284689,3220.1,3219.2,0.96731353]
[1767787976174,9.344,3220.0,3219.2,0.96731353]
[1767787976571,11.11461583,3220.0,3219.2,0.96731353]
[1767787976757,3.10561583,3220.0,3219.2,0.96731353]
[1767787978500,4.09292993,3220.0,3219.2,0.96731353]
[1767787978689,14.09292993,3220.0,3219.2,0.96731353]
[1767787978990,4.09292993,3220.0,3219.2,0.96731353]
[1767787979187,14.09292993,3220.0,3219.2,0.96731353]
[1767787979497,4.09292993,3220.0,3219.2,0.96731353]
[1767787979664,14.09292993,3220.0,3219.2,0.96731353]
[1767787980303,4.09292993,3220.0,3219.2,0.96731353]
[1767787981260,4.7350216,3220.0,3219.2,0.96731353]
[1767787983701,3.10561583,3220.0,3219.2,0.96731353]
[1767787983903,3.10553015,3220.1,3219.3,0.97343554]
[1767787984067,3.10553015,3220.1,3219.3,0.97543554]
[1767787984268,0.001,3219.7,3219.3,0.97543554]
[1767787985499,0.001,3219.7,3219.4,0.97343554]
[1767787985810,0.001,3219.7,3219.6,0.97343554]
[1767787986014,0.001,3219.7,3219.4,0.97343554]
[1767787988188,0.9119361,3219.7,3218.9,0.97343554]
[1767787989185,0.9109361,3219.6,3218.9,0.97343554]
[1767787990691,0.9109361,3219.5,3218.7,0.97343554]
[1767787991729,0.9109361,3219.5,3218.7,4.08027305]
[1767787992089,0.9109361,3219.4,3218.7,4.08027305]
[1767787992625,0.9109361,3219.4,3218.7,0.97343554]
[1767787994348,4.01711241,3219.4,3218.7,0.97343554]
[1767787995113,0.9109361,3219.3,3218.5,3.10900542]
[1767787995746,0.9109361,3219.3,3218.6,3.10692091]
[1767787996457,0.9109361,3219.3,3219.0,0.002]
[1767787998657,0.001,3219.4,3219.0,0.002]
[1767787999353,4.01810686,3219.4,3219.0,0.002]
[1767787999524,0.40181069,3219.3,3219.0,0.002]
[1767788000015,1.31274679,3219.3,3219.0,0.002]
[1767788000967,0.7,3219.1,3219.0,0.002]
[1767788002564,0.7,3219.1,3218.7,0.97343554]
[1767788003877,0.7,3219.1,3218.6,0.002]
[1767788004042,0.7,3219.1,3218.6,0.97543554]
[1767788006272,0.7,3219.1,3218.7,0.97343554]
[1767788008869,0.7,3219.1,3219.0,0.002]
[1767788010363,1.12081727,3219.1,3219.0,0.002]
[1767788010669,2.03175337,3219.1,3218.6,0.002]
[1767788011170,0.9109361,3219.0,3218.6,0.002]
[1767788012170,0.7,3219.1,3218.6,0.95798837]
[1767788012468,3.80646624,3219.1,3218.6,0.002]
[1767788012660,4.74634911,3219.1,3218.6,0.002]
[1767788013854,1.63988287,3219.1,3218.6,0.002]
[1767788014048,1.21480865,3219.1,3218.6,0.95798837]
[1767788014768,5.26116645,3219.1,3218.4,0.90998837]
[1767788014967,0.93988287,3219.0,3218.1,0.95598837]
[1767788015267,4.04663072,3218.8,3218.1,0.95598837]
[1767788016169,7.15337857,3218.8,3218.1,0.95598837]
[1767788016672,0.93988287,3218.7,3218.1,0.90598837]
[1767788016875,0.93988287,3218.7,3217.8,0.95798837]
[1767788017272,0.93988287,3218.5,3217.8,0.95798837]
[1767788017461,1.34456525,3218.4,3217.8,0.95798837]
[1767788019174,4.45170324,3218.4,3217.8,0.95798837]
[1767788019676,0.93988287,3218.3,3217.8,0.002]
[1767788019882,0.93988287,3218.2,3217.8,0.002]
[1767788020549,0.93988287,3218.2,3218.1,0.002]
[1767788020750,1.69576699,3218.2,3217.8,0.002]
[1767788021251,4.80311131,3218.2,3217.8,0.002]
[1767788022579,1.69576699,3218.2,3217.8,0.002]
[1767788023480,4.80311246,3218.2,3217.8,0.002]
[1767788023857,3.86322959,3218.2,3217.8,0.002]
[1767788024279,4.80311246,3218.2,3217.8,0.002]
[1767788024489,0.93988287,3218.1,3217.8,0.002]
[1767788024669,1.73091818,3218.1,3217.8,0.002]
[1767788025474,0.79103531,3218.1,3217.8,0.002]
[1767788028197,3.89847048,3218.1,3217.8,0.002]
[1767788030672,3.89847048,3218.1,3217.4,0.002]
[1767788030673,8.00254534,3218.1,3217.4,0.002]
[1767788030989,7.21151003,3218.1,3217.4,0.002]
[1767788031505,7.21151003,3218.1,3217.4,0.97470758]
[1767788031671,4.10407486,3218.1,3217.4,0.97470758]
[1767788032187,7.21151003,3218.1,3217.4,0.97470758]
[1767788032390,0.721151,3218.0,3217.4,0.97470758]
[1767788033188,3.10761676,3217.9,3217.4,0.97470758]
[1767788033887,3.10761676,3217.9,3217.8,0.002]
[1767788034071,3.10761676,3217.9,3217.4,0.002]
[1767788034271,4.10425645,3217.9,3217.4,0.002]
[1767788034790,0.99663969,3217.9,3217.4,0.002]
[1767788035494,0.99663969,3218.2,3217.4,0.97470758]
[1767788035785,0.99663969,3218.1,3217.4,0.97470758]
[1767788037091,4.1040852,3218.1,3217.4,0.97470758]
[1767788038819,3.10744551,3218.1,3217.4,0.97470758]
[1767788041318,7.21153071,3218.1,3217.4,0.97470758]
[1767788041925,4.1040852,3218.1,3217.4,0.97470758]
[1767788042220,4.92484365,3218.1,3217.4,0.97470758]
[1767788042417,0.96688359,3218.0,3217.4,0.002]
[1767788043920,4.07450035,3217.9,3217.4,0.002]
[1767788044116,7.18211711,3217.9,3217.4,0.002]
[1767788044317,0.71821171,3217.8,3217.4,0.002]
[1767788046117,0.71821171,3217.8,3217.7,0.002]
[1767788046434,4.793813,3217.8,3217.4,0.002]
[1767788046614,4.07560129,3217.8,3217.4,0.002]
[1767788046809,3.1087177,3217.8,3217.4,0.002]
[1767788048042,0.001,3217.8,3217.4,0.002]
[1767788049728,0.001,3217.8,3217.0,0.002]
[1767788049729,0.96688359,3217.7,3217.0,0.002]
[1767788049934,1.37444328,3217.7,3217.0,0.95667644]
[1767788050642,1.37444328,3217.7,3216.5,0.817]
[1767788050643,0.96688359,3217.3,3216.5,0.002]
[1767788050812,0.96688359,3217.1,3216.5,0.002]
[1767788051834,0.96688359,3217.1,3216.5,0.95667644]
[1767788052043,3.1083216,3217.2,3216.5,0.95667644]
[1767788052210,3.82666078,3217.2,3216.5,0.95667644]
[1767788052542,0.96688359,3217.1,3216.5,0.95667644]
[1767788052715,0.96688359,3217.1,3216.5,0.002]
[1767788053419,0.96688359,3217.1,3216.1,0.002]
[1767788053626,6.93498238,3217.2,3216.1,0.002]
[1767788053627,0.96688359,3216.8,3216.1,0.002]
[1767788053972,0.71840492,3216.7,3216.1,0.002]
[1767788054152,1.68528851,3216.7,3216.1,0.002]
[1767788055639,4.79412032,3216.7,3216.1,0.002]
[1767788056379,0.96688359,3216.6,3216.1,0.002]
[1767788057652,0.96688359,3216.6,3215.8,0.95467644]
[1767788057860,0.96688359,3216.4,3215.6,0.002]
[1767788058056,30.0,3216.2,3215.6,0.002]
[1767788058229,24.074,3216.2,3215.6,0.002]
[1767788058427,3.973,3216.2,3215.6,0.002]
[1767788058839,4.93988359,3216.2,3216.0,0.002]
[1767788059154,0.49398836,3216.1,3216.0,0.002]
[1767788059356,0.96688359,3216.2,3216.0,0.002]
[1767788060256,4.94774817,3216.5,3216.0,0.002]
[1767788060462,0.87189521,3216.5,3216.0,0.95667644]
[1767788060647,3.10887272,3216.6,3216.0,0.95667644]
[1767788061148,0.71840492,3216.7,3216.0,0.95667644]
[1767788061351,0.96688359,3217.3,3216.0,0.95667644]
[1767788061548,20.213,3217.1,3216.0,0.95667644]
[1767788061748,0.96688359,3217.0,3216.0,0.95667644]
[1767788061949,10.96688359,3216.8,3216.0,0.95667644]
[1767788062147,0.96688359,3216.8,3216.0,0.95667644]
[1767788062530,3.10862332,3216.9,3216.2,0.95467644]
[1767788062756,0.96688359,3217.0,3216.2,0.95467644]
[1767788062954,0.7,3216.6,3216.2,0.95467644]
[1767788064232,0.7,3216.6,3216.2,4.06384294]
[1767788064641,0.7,3216.6,3216.3,0.95467644]
[1767788064856,0.59441466,3216.6,3216.5,0.95467644]
[1767788065365,0.59441466,3216.6,3216.4,0.40638429]
[1767788066063,4.07528327,3217.1,3216.4,1.36106073]
[1767788066260,4.46507845,3217.0,3216.4,0.95467644]
[1767788066444,4.07543307,3217.0,3216.2,0.95467644]
[1767788067534,7.18398255,3217.0,3216.2,0.95467644]
[1767788068372,0.96688359,3216.9,3216.2,0.95467644]
[1767788068874,4.07553761,3216.9,3216.2,0.95467644]
[1767788070775,0.001,3216.7,3216.2,0.95467644]
[1767788070977,0.001,3216.7,3216.0,0.95667644]
[1767788071277,0.001,3216.7,3216.1,0.40662052]
[1767788072072,0.001,3216.7,3216.1,1.38673839]
[1767788072372,0.94586921,3216.7,3216.0,0.98211787]
[1767788074053,4.05465557,3216.7,3216.0,0.98211787]
[1767788076479,3.10889373,3216.6,3216.0,0.98211787]
[1767788077283,0.94486921,3216.5,3215.6,0.002]
[1767788077473,30.0,3216.2,3215.6,0.002]
[1767788077663,0.94486921,3216.2,3215.6,0.002]
[1767788078695,0.94486921,3216.0,3215.6,0.002]
[1767788079772,0.94486921,3215.9,3215.3,0.002]
[1767788080753,3.10964612,3215.8,3215.3,0.002]
[1767788080966,7.16416145,3215.8,3215.3,0.002]
[1767788081167,4.05451533,3215.8,3215.3,0.002]
[1767788081366,5.81145435,3215.8,3215.3,0.002]
[1767788081572,4.05451533,3215.8,3215.3,0.002]
[1767788081980,0.94486921,3215.8,3215.3,0.002]
[1767788082200,3.277,3216.7,3215.3,0.98211787]
[1767788082201,0.94486921,3216.2,3215.3,0.98211787]
[1767788082485,0.94486921,3216.1,3215.9,0.002]
[1767788082660,1.12095613,3216.0,3215.3,0.002]
[1767788082853,1.12095613,3216.0,3215.5,0.002]
[1767788082854,0.94486921,3216.0,3215.5,0.002]
[1767788083058,0.7,3215.8,3215.5,0.002]
[1767788085577,3.8096577,3215.8,3215.5,0.002]
[1767788086459,0.7,3215.8,3215.5,0.002]
[1767788100318,0.94486921,3215.7,3215.5,0.002]
[1767788100615,0.16448692,3215.7,3215.5,0.002]
[1767788101209,0.7,3215.8,3215.5,0.002]
[1767788101422,0.7,3215.8,3215.5,0.98211787]
[1767788101987,0.7,3215.8,3215.5,0.002]
[1767788103498,0.7,3215.8,3215.5,0.99090353]
[1767788104822,0.7,3215.8,3215.5,0.002]
[1767788106522,0.94599917,3215.7,3215.5,0.002]
[1767788110047,0.7,3215.8,3215.5,0.002]
[1767788110256,0.7,3215.8,3215.6,0.96620184]
[1767788113061,0.7,3215.8,3215.6,1.3740247]
[1767788113265,0.7,3215.8,3215.7,0.96620184]
[1767788114472,0.7,3215.8,3215.6,0.40782286]
[1767788114779,0.7,3215.8,3215.5,0.96820184]
[1767788119570,0.7,3215.8,3215.6,0.96620184]
[1767788120371,0.001,3217.8,3216.2,9.32777811]
[1767788120582,0.816,3217.9,3217.2,4.96856698]
[1767788120896,0.816,3217.9,3216.3,2.71009735]
[1767788120897,0.94599917,3217.8,3216.4,1.78220184]
[1767788121083,0.94599917,3217.8,3216.8,4.00236514]
[1767788122388,0.94599917,3217.8,3216.9,3.10858279]
[1767788123592,30.0,3217.7,3216.8,0.96620184]
[1767788124203,0.94599917,3217.7,3216.8,0.96620184]
[1767788124395,3.10790651,3217.6,3216.8,0.96620184]
[1767788124561,4.05390568,3217.6,3216.8,0.96620184]
[1767788124762,0.71617564,3217.5,3216.8,0.96620184]
[1767788126485,0.71617564,3217.5,3216.9,0.96620184]
[1767788126880,30.0,3217.7,3216.9,0.96620184]
[1767788127478,0.48696357,3217.8,3216.9,0.96620184]
[1767788127694,0.816,3217.9,3216.9,0.96620184]
[1767788128511,3.92362427,3217.9,3217.1,0.96620184]
[1767788128812,0.816,3217.9,3217.1,0.96620184]
[1767788129006,3.92363428,3217.9,3217.1,0.96620184]
[1767788129209,0.816,3217.9,3217.1,0.96620184]
[1767788129412,1.20834261,3217.9,3217.1,0.96620184]
[1767788129911,4.31596798,3217.9,3217.1,0.96620184]
[1767788130109,4.31596798,3217.9,3217.2,0.002]
[1767788130413,4.31596777,3217.9,3217.2,0.96820184]
[1767788131201,1.20834261,3217.9,3217.2,0.96820184]
[1767788131783,3.49996783,3217.9,3217.2,0.96820184]
[1767788132099,0.816,3218.2,3217.3,0.94249645]
[1767788132300,1.79561842,3218.2,3217.3,0.94249645]
[1767788132696,7.19446568,3218.1,3217.3,0.94249645]
[1767788133288,0.97961842,3218.0,3217.2,0.002]
[1767788133691,0.97961842,3218.0,3217.2,0.94449645]
[1767788133920,1.78066499,3218.0,3217.2,0.94449645]
[1767788134819,4.88822417,3218.0,3217.2,0.94449645]
[1767788134994,3.10748507,3218.1,3217.2,0.94449645]
[1767788135822,3.10748507,3218.1,3217.3,0.94249645]
[1767788140359,1.79561842,3218.2,3217.4,0.94249645]
[1767788140360,0.816,3218.2,3217.4,0.94249645]
[1767788141715,0.816,3218.2,3217.5,0.94249645]
[1767788142331,0.816,3218.2,3217.5,0.94449645]
[1767788142500,0.001,3217.8,3217.6,1.3477536]
[1767788142700,0.001,3217.8,3217.7,0.94249645]
[1767788147017,0.001,3217.8,3217.7,0.94049645]
[1767788152358,0.816,3218.2,3217.8,0.94249645]
[1767788152559,0.816,3218.2,3217.8,0.94049645]
[1767788153485,0.816,3218.2,3217.8,1.34333265]
[1767788153832,0.816,3218.2,3217.8,1.34133265]
[1767788156265,0.001,3217.9,3217.8,1.34133265]
[1767788160071,0.816,3218.2,3217.8,1.34133265]
[1767788160966,0.001,3218.5,3217.9,0.94249645]
[1767788161159,0.001,3218.5,3218.0,0.94249645]
[1767788162988,0.90979958,3218.5,3217.8,0.4048362]
[1767788163199,0.90979958,3218.5,3217.5,0.91361284]
[1767788163481,0.90979958,3218.5,3217.7,0.91161284]
[1767788164961,4.01688455,3218.5,3217.7,0.91161284]
[1767788166599,0.001,3218.5,3217.8,0.91161284]
[1767788166807,0.001,3218.5,3218.0,0.91161284]
[1767788167794,0.001,3218.5,3218.1,0.91161284]
[1767788167968,3.10626533,3219.3,3218.5,0.91161284]
[1767788171166,6.21253066,3219.3,3218.5,0.91161284]
[1767788172272,3.10626533,3219.3,3218.5,0.91161284]
[1767788173227,3.10626533,3219.3,3218.7,0.91709044]
[1767788179223,7.14093302,3219.3,3218.7,0.91709044]
[1767788180210,0.001,3219.0,3218.7,0.91709044]
[1767788192571,0.001,3219.4,3218.9,0.97629185]
[1767788194940,0.001,3219.4,3218.5,0.97629185]
[1767788195160,0.001,3219.4,3218.7,0.97629185]
[1767788196055,3.10716885,3219.4,3218.7,0.97629185]
[1767788196353,0.91924005,3219.3,3218.6,0.57872911]
[1767788196553,0.91924005,3219.3,3218.5,0.97629185]
[1767788199980,3.10636182,3219.2,3218.5,0.97629185]
[1767788206689,3.10636182,3219.2,3218.8,0.002]
[1767788207102,0.001,3219.1,3218.8,0.002]
[1767788213127,4.02673925,3219.1,3218.8,0.002]
[1767788216321,0.001,3219.1,3218.8,0.002]
[1767788221208,0.94484693,3219.1,3218.8,0.002]
[1767788223137,4.05133352,3219.1,3218.8,0.002]
[1767788223361,3.10748659,3219.1,3218.8,0.002]
[1767788224264,0.001,3219.1,3218.8,0.002]
[1767788226291,0.001,3219.1,3218.6,0.95048474]
[1767788229393,0.001,3219.1,3218.5,0.002]
[1767788229606,0.001,3219.1,3218.5,0.95248474]
[1767788231121,0.001,3219.1,3218.6,0.95048474]
[1767788231574,0.001,3219.1,3218.8,0.002]
[1767788232397,0.001,3219.1,3218.8,0.95248474]
[1767788232809,0.001,3219.7,3219.1,0.95048474]
[1767788233011,4.07285085,3220.2,3219.4,0.95048474]
[1767788233172,0.96745341,3220.2,3219.5,0.95048474]
[1767788233381,0.96745341,3220.2,3219.6,1.35614923]
[1767788233707,0.001,3220.2,3219.7,0.95048474]
[1767788235309,0.001,3220.2,3219.7,4.05635651]
[1767788235505,0.001,3220.2,3219.8,0.95048474]
[1767788236217,0.001,3220.2,3219.8,1.76548474]
[1767788236402,0.001,3220.2,3219.9,0.17654847]
[1767788242926,4.9634527,3220.2,3219.4,0.95048474]
[1767788243081,0.96645341,3220.1,3219.4,0.95048474]
[1767788243409,0.96645341,3219.8,3218.9,0.95048474]
[1767788243583,0.96645341,3219.8,3219.0,1.76548474]
[1767788243986,0.96645341,3219.6,3219.0,1.76548474]
[1767788244289,0.96645341,3219.5,3218.8,0.002]
[1767788244589,6.21175884,3219.7,3218.9,0.95048474]
[1767788244590,3.10587942,3219.7,3218.9,0.95048474]
[1767788244803,3.10587942,3219.7,3219.1,0.95048474]
[1767788245009,3.10587942,3219.7,3219.2,0.98154835]
[1767788245221,0.96645341,3219.6,3219.0,0.95048474]
[1767788245531,0.96645341,3219.6,3218.8,0.95248474]
[1767788246383,3.10607237,3219.5,3218.8,0.95248474]
[1767788246586,3.10607237,3219.5,3218.8,1.43992671]
[1767788246785,3.10607237,3219.5,3218.9,0.95048474]
[1767788247111,4.07252578,3219.5,3218.9,0.95048474]
[1767788249316,4.07252578,3219.5,3218.8,0.002]
[1767788249820,0.96645341,3219.4,3218.8,0.002]
[1767788249992,0.96645341,3219.2,3218.5,1.76748474]
[1767788250192,0.96645341,3219.2,3218.5,0.817]
[1767788250624,3.10645832,3219.1,3218.5,0.817]
[1767788250825,3.10645832,3219.1,3218.5,1.76748474]
[1767788251225,3.10645832,3219.1,3218.5,0.95248474]
[1767788252496,3.10645832,3219.1,3218.3,0.98175187]
[1767788252497,3.10665134,3218.9,3218.3,0.98175187]
[1767788252698,4.04609597,3218.9,3218.3,0.98175187]
[1767788252909,0.93944463,3218.9,3218.3,0.98175187]
[1767788255409,0.93944463,3218.9,3218.8,0.002]
[1767788255604,4.046135,3218.9,3218.3,0.98175187]
[1767788255843,4.046135,3218.9,3218.5,0.002]
[1767788256250,0.93944463,3218.9,3218.5,0.002]
[1767788256431,4.04611121,3218.9,3218.5,0.002]
[1767788257156,4.76137546,3218.9,3218.5,0.002]
[1767788257345,1.65470888,3218.9,3218.5,0.002]
[1767788258163,4.7613854,3218.9,3218.5,0.002]
[1767788258627,1.65470888,3218.9,3218.5,0.002]